bitfinex-derivatives/quotes_SOLF0:USTF0_20250101
["timestamp","ask_amount","ask_price","bid_price","bid_amount"]
[1735768919221,2.5716,194.83,194.78,13.65479124]
[1735768919430,8.16279124,194.84,194.78,13.65479124]
[1735768921527,2.5715,194.83,194.78,13.65479124]
[1735768922233,2.5716,194.82,194.78,11.08279124]
[1735768922534,2.5716,194.82,194.78,8.16279124]
[1735768922830,2.5716,194.82,194.74,53.42]
[1735768922831,8.16279124,194.82,194.76,8.16279124]
[1735768923031,2.5719,194.8,194.76,11.08279124]
[1735768923230,8.16279124,194.82,194.76,11.08279124]
[1735768923532,8.16279124,194.84,194.76,11.08279124]
[1735768924131,2.5715,194.83,194.78,2.572]
[1735768924323,2.5715,194.83,194.78,10.73479124]
[1735768925332,2.5715,194.83,194.78,2.572]
[1735768925928,2.5717,194.82,194.77,5.4923]
[1735768926326,8.16279124,194.82,194.77,2.92]
[1735768927435,2.5719,194.8,194.77,2.92]
[1735768933535,2.5723,194.77,194.73,5.4927]
[1735768934830,2.5723,194.77,194.73,2.5727]
[1735768935035,2.5723,194.77,194.73,5.4927]
[1735768935431,8.16279124,194.78,194.73,2.92]
[1735768935735,2.5726,194.75,194.71,5.4929]
[1735768937130,2.5726,194.75,194.71,2.92]
[1735768937534,2.5726,194.75,194.7,16.78359124]
[1735768938333,2.5726,194.75,194.7,14.21049124]
[1735768938537,2.5726,194.75,194.71,2.573]
[1735768941637,2.5727,194.74,194.7,8.6209]
[1735768941834,8.16279124,194.74,194.68,2.92]
[1735768942038,8.16279124,194.74,194.67,11.08279124]
[1735768942534,8.16279124,194.74,194.67,13.65619124]
[1735768942740,8.16279124,194.74,194.67,11.08279124]
[1735768944543,2.5728,194.73,194.69,2.5733]
[1735768946433,2.5725,194.76,194.7,2.5731]
[1735768946638,8.16279124,194.76,194.69,8.16279124]
[1735768947441,2.5726,194.75,194.71,2.573]
[1735768949441,2.5728,194.73,194.69,10.73609124]
[1735768949642,8.16279124,194.74,194.67,11.08279124]
[1735768950442,2.5729,194.72,194.68,2.5734]
[1735768950843,10.73569124,194.72,194.68,2.5734]
[1735768951747,10.73569124,194.72,194.67,2.5735]
[1735768952941,2.5732,194.7,194.65,10.73649124]
[1735768953244,8.16279124,194.7,194.64,2.92]
[1735768953440,8.16279124,194.7,194.63,14.19779124]
[1735768954447,8.16279124,194.72,194.65,8.16279124]
[1735768955541,2.5731,194.71,194.66,2.5736]
[1735768957047,2.5732,194.7,194.66,2.5736]
[1735768957347,8.16279124,194.7,194.64,2.5739]
[1735768958453,2.5735,194.68,194.64,2.5739]
[1735768959147,4.7012,194.79,194.65,8.16279124]
[1735768959344,8.16279124,194.73,194.65,8.16279124]
[1735768960445,2.5731,194.71,194.67,2.5735]
[1735768961447,2.5733,194.7,194.65,10.73649124]
[1735768962852,2.5734,194.68,194.64,2.5739]
[1735768965653,2.5736,194.67,194.63,12.25509124]
[1735768965853,2.5736,194.67,194.63,4.0923]
[1735768969151,2.5736,194.67,194.63,2.5741]
[1735768969352,8.16279124,194.67,194.62,1.549]
[1735768969753,8.16279124,194.67,194.61,2.92]
[1735768970256,8.16279124,194.65,194.61,2.5743]
[1735768971553,10.73669124,194.65,194.61,2.5743]
[1735768975158,8.16279124,194.65,194.6,2.5865295]
[1735768975459,2.574,194.64,194.6,5.1610295]
[1735768976857,2.5737,194.67,194.62,2.5742]
[1735768977064,10.73649124,194.67,194.6,10.74932074]
[1735768977360,2.5737,194.67,194.6,10.74932074]
[1735768977560,2.5737,194.67,194.62,2.5741]
[1735768978356,8.16279124,194.68,194.62,2.5741]
[1735768978562,10.73659124,194.66,194.62,2.5741]
[1735768981663,8.16279124,194.66,194.6,5.5065295]
[1735768981861,8.16279124,194.64,194.6,5.5065295]
[1735768982265,2.5741,194.63,194.6,5.5065295]
[1735768982763,2.5741,194.63,194.6,2.92]
[1735768983563,8.16279124,194.64,194.6,2.92]
[1735768983862,8.16279124,194.64,194.61,2.5744]
[1735768984061,8.16279124,194.66,194.61,2.5744]
[1735768984263,2.5738,194.65,194.61,2.5743]
[1735768984868,8.16279124,194.66,194.6,11.08279124]
[1735768985063,1.4871,194.72,194.62,8.16279124]
[1735768985264,8.16279124,194.69,194.62,8.16279124]
[1735768987677,10.73619124,194.69,194.64,2.5739]
[1735768989272,8.16279124,194.67,194.62,10.73689124]
[1735768989472,8.16279124,194.67,194.62,2.5741]
[1735768990274,10.73639124,194.67,194.62,2.5741]
[1735768990676,10.73639124,194.67,194.63,2.5741]
[1735768992269,2.5737,194.66,194.61,2.5742]
[1735768992469,8.16279124,194.63,194.57,31.55777075]
[1735768992673,8.16279124,194.63,194.57,34.47777075]
[1735768993579,10.73689124,194.63,194.59,2.5746]
[1735768995876,2.5742,194.62,194.58,2.5747]
[1735768998780,8.16279124,194.63,194.58,2.5747]
[1735768998981,10.73689124,194.63,194.58,2.5747]
[1735768999378,2.5735,194.68,194.61,2.5743]
[1735768999579,8.16279124,194.65,194.61,2.5743]
[1735769002078,10.73659124,194.65,194.61,2.5743]
[1735769003784,8.16279124,194.67,194.63,2.5741]
[1735769005479,10.73639124,194.67,194.63,2.5741]
[1735769005684,10.73639124,194.67,194.64,2.5739]
[1735769006184,2.5734,194.68,194.64,2.5739]
[1735769007183,10.73639124,194.67,194.64,2.5739]
[1735769007387,10.73639124,194.67,194.63,2.5741]
[1735769007689,8.16279124,194.65,194.61,2.92]
[1735769010992,10.25253836,194.72,194.61,5.4943]
[1735769011191,8.16279124,194.65,194.61,5.4943]
[1735769013892,8.16279124,194.65,194.61,2.5743]
[1735769017092,10.73669124,194.65,194.61,2.5743]
[1735769019893,8.16279124,194.65,194.61,2.5743]
[1735769020087,2.574,194.64,194.61,2.5743]
[1735769021286,2.574,194.64,194.59,1.6119]
[1735769021487,2.574,194.64,194.6,8.51080811]
[1735769021791,2.574,194.64,194.6,2.5745]
[1735769022293,2.5741,194.63,194.59,4.1865]
[1735769022493,10.73689124,194.63,194.59,4.1865]
[1735769022686,10.73689124,194.63,194.59,2.5746]
[1735769023490,2.5744,194.61,194.58,2.92]
[1735769023799,2.5744,194.61,194.57,2.5748]
[1735769023994,2.5744,194.61,194.58,1.86476653]
[1735769024295,2.5744,194.61,194.57,2.5748]
[1735769024592,2.5744,194.61,194.58,1.86463054]
[1735769024799,2.5744,194.61,194.57,2.5748]
[1735769025000,2.5744,194.61,194.58,1.86461059]
[1735769025290,2.5745,194.6,194.56,2.92]
[1735769025492,2.5745,194.6,194.57,5.93607478]
[1735769025700,2.5745,194.6,194.56,2.92]
[1735769025893,2.5745,194.6,194.57,1.86442451]
[1735769026097,2.5745,194.6,194.56,2.92]
[1735769026301,2.5745,194.6,194.57,1.86442206]
[1735769026503,2.5745,194.6,194.56,5.495]
[1735769026990,2.5745,194.6,194.57,1.86426888]
[1735769027191,2.5745,194.6,194.56,5.495]
[1735769027393,10.73719124,194.61,194.57,2.5748]
[1735769027592,8.16279124,194.61,194.54,9.73069124]
[1735769027792,8.16279124,194.61,194.55,4.78404431]
[1735769027997,8.16279124,194.61,194.55,2.92]
[1735769028200,8.16279124,194.61,194.54,12.65069124]
[1735769028400,2.5746,194.6,194.55,2.5751]
[1735769029405,2.5746,194.6,194.56,2.575]
[1735769031703,2.5747,194.59,194.55,2.5751]
[1735769031903,8.16279124,194.59,194.55,2.5751]
[1735769032706,8.16279124,194.57,194.52,2.92]
[1735769033405,8.16279124,194.57,194.53,2.5753]
[1735769035503,8.16279124,194.57,194.51,41.8196528]
[1735769035708,8.16279124,194.55,194.52,2.5755]
[1735769037209,8.16279124,194.55,194.48,9.66949124]
[1735769037507,8.16279124,194.53,194.48,9.66949124]
[1735769037713,8.16279124,194.53,194.48,1.5067]
[1735769038410,10.73819124,194.53,194.49,2.5759]
[1735769042312,8.16279124,194.53,194.51,2.5756]
[1735769043211,8.16279124,194.53,194.48,1.5067]
[1735769043212,8.16279124,194.53,194.49,2.5759]
[1735769044615,8.16279124,194.51,194.39,4.6715]
[1735769044819,8.16279124,194.47,194.42,2.92]
[1735769045214,8.16279124,194.45,194.42,2.92]
[1735769045414,8.16279124,194.47,194.42,2.92]
[1735769046512,8.16279124,194.47,194.45,2.5764]
[1735769047213,8.16279124,194.49,194.43,8.16279124]
[1735769047416,8.16279124,194.51,194.45,8.16279124]
[1735769048411,8.16279124,194.53,194.47,8.16279124]
[1735769048608,8.16279124,194.53,194.47,11.08279124]
[1735769048817,8.16279124,194.53,194.49,2.5758]
[1735769049318,8.16279124,194.53,194.47,2.92]
[1735769049523,8.16279124,194.53,194.48,2.576]
[1735769049714,8.16279124,194.52,194.47,2.92]
[1735769050518,8.16279124,194.52,194.49,2.5759]
[1735769050713,8.16279124,194.5,194.47,2.92]
[1735769051409,8.16279124,194.5,194.47,5.4962]
[1735769051614,8.16279124,194.48,194.47,2.92]
[1735769051809,8.16279124,194.48,194.39,4.6715]
[1735769051810,8.16279124,194.48,194.43,2.92]
[1735769052418,8.16279124,194.48,194.45,2.5764]
[1735769052614,8.16279124,194.48,194.43,2.92]
[1735769052820,8.16279124,194.46,194.43,2.92]
[1735769053019,8.16279124,194.46,194.43,5.4967]
[1735769053221,8.16279124,194.44,194.43,5.4967]
[1735769053722,8.16279124,194.44,194.43,2.5767]
[1735769055121,2.92,194.54,194.46,2.5763]
[1735769055420,8.16279124,194.48,194.46,2.5763]
[1735769057029,8.16279124,194.48,194.47,2.5762]
[1735769057426,8.16279124,194.48,194.43,8.16279124]
[1735769057727,8.16279124,194.48,194.46,2.5763]
[1735769060426,8.16279124,194.48,194.42,2.92]
[1735769063030,2.5758,194.5,194.46,2.5763]
[1735769063433,2.92,194.54,194.44,2.5766]
[1735769063434,2.5761,194.48,194.44,2.5766]
[1735769063732,2.5761,194.48,194.42,2.92]
[1735769063733,2.92,194.54,194.42,2.92]
[1735769063925,2.5762,194.47,194.43,2.5767]
[1735769064127,2.5762,194.47,194.42,2.92]
[1735769064327,2.5762,194.47,194.39,3.1651]
[1735769064533,8.16279124,194.43,194.39,6.0851]
[1735769065332,8.16279124,194.43,194.39,4.4986]
[1735769065531,8.16279124,194.43,194.39,2.92]
[1735769065725,8.16279124,194.41,194.39,2.92]
[1735769065923,8.16279124,194.41,194.4,2.577]
[1735769066431,8.16279124,194.41,194.36,5.20070713]
[1735769066432,8.16279124,194.41,194.37,2.5775]
[1735769066627,8.16279124,194.41,194.36,8.12070713]
[1735769067624,2.5768,194.43,194.36,3.72540713]
[1735769067826,8.16279124,194.39,194.36,3.72540713]
[1735769068427,8.16279124,194.39,194.38,2.5773]
[1735769070634,8.16279124,194.39,194.35,2.92]
[1735769070829,8.16279124,194.37,194.35,2.92]
[1735769071535,8.16279124,194.37,194.36,2.5776]
[1735769073041,8.16279124,194.37,194.35,2.5778]
[1735769075339,2.577,194.42,194.33,8.16279124]
[1735769075543,2.92,194.47,194.35,8.16279124]
[1735769075737,8.16279124,194.42,194.35,8.16279124]
[1735769075938,8.16279124,194.4,194.36,2.5776]
[1735769077442,10.73999124,194.4,194.35,2.5777]
[1735769077639,8.16279124,194.38,194.35,2.5777]
[1735769078235,2.5767,194.44,194.38,2.5773]
[1735769078432,8.16279124,194.41,194.34,11.08279124]
[1735769079445,8.16279124,194.41,194.38,2.5773]
[1735769080242,8.16279124,194.41,194.39,2.5773]
[1735769083245,8.16279124,194.41,194.38,2.5774]
[1735769084549,8.16279124,194.41,194.34,11.08279124]
[1735769084748,8.16279124,194.41,194.38,2.5774]
[1735769088449,2.5769,194.42,194.38,2.5774]
[1735769088650,8.16279124,194.4,194.38,2.5774]
[1735769092354,8.16279124,194.4,194.34,2.92]
[1735769092551,8.16279124,194.37,194.3,3.183]
[1735769092752,8.16279124,194.35,194.31,2.92]
[1735769093352,8.16279124,194.35,194.3,6.103]
[1735769094459,8.16279124,194.35,194.34,2.5779]
[1735769100274,8.16279124,194.35,194.31,2.5782]
[1735769100468,8.16279124,194.33,194.31,2.5782]
[1735769102368,8.16279124,194.33,194.3,2.5785]
[1735769104372,8.16279124,194.33,194.29,4.0799]
[1735769105270,8.16279124,194.33,194.29,1.5013]
[1735769105472,4.6025,194.4,194.29,1.5013]
[1735769105670,8.16279124,194.38,194.3,8.16279124]
[1735769105972,8.16279124,194.38,194.36,2.5776]
[1735769107278,8.16279124,194.38,194.35,2.5778]
[1735769107871,2.577,194.42,194.34,2.92]
[1735769108074,58.37107376,194.46,194.34,2.92]
[1735769108075,8.16279124,194.4,194.34,2.92]
[1735769108275,8.16279124,194.4,194.34,11.08279124]
[1735769108668,8.16279124,194.4,194.35,1.6042]
[1735769109073,8.16279124,194.4,194.36,2.5776]
[1735769109272,8.16279124,194.4,194.35,1.6042]
[1735769110571,8.16279124,194.4,194.38,2.5774]
[1735769110775,8.16279124,194.4,194.35,1.6042]
[1735769111372,8.16279124,194.4,194.37,2.5775]
[1735769113376,8.16279124,194.4,194.35,1.6042]
[1735769113578,2.5767,194.44,194.38,2.5774]
[1735769113778,8.16279124,194.41,194.38,2.5774]
[1735769114780,8.16279124,194.41,194.35,1.6042]
[1735769115385,8.16279124,194.41,194.38,2.5774]
[1735769116185,8.16279124,194.39,194.33,1.5307]
[1735769116380,8.16279124,194.37,194.33,4.4507]
[1735769116881,8.16279124,194.37,194.34,2.5779]
[1735769121582,8.16279124,194.37,194.33,4.4507]
[1735769121788,8.16279124,194.37,194.36,2.5777]
[1735769121988,8.16279124,194.39,194.36,2.5777]
[1735769123287,8.16279124,194.39,194.33,4.4507]
[1735769123480,8.16279124,194.42,194.34,10.02420243]
[1735769123686,8.16279124,194.42,194.34,8.16279124]
[1735769123887,8.16279124,194.42,194.36,8.16279124]
[1735769124082,8.16279124,194.42,194.41,2.577]
[1735769124685,7.4992,194.49,194.43,2.5767]
[1735769124686,8.16279124,194.44,194.43,2.5767]
[1735769128497,8.16279124,194.48,194.44,2.5765]
[1735769130092,8.16279124,194.48,194.45,2.5764]
[1735769130695,8.16279124,194.48,194.46,2.5763]
[1735769131694,8.16279124,194.5,194.43,2.92]
[1735769132389,8.16279124,194.5,194.44,8.16279124]
[1735769132796,8.16279124,194.5,194.44,9.78269124]
[1735769133091,1.5995,194.54,194.44,1.6199]
[1735769133092,8.16279124,194.48,194.44,1.6199]
[1735769133395,8.16279124,194.48,194.43,2.92]
[1735769133798,8.16279124,194.48,194.44,2.5765]
[1735769133997,8.16279124,194.46,194.43,2.92]
[1735769135495,8.16279124,194.46,194.43,5.4967]
[1735769136999,8.16279124,194.46,194.43,2.5767]
[1735769137400,8.16279124,194.46,194.41,5.4969]
[1735769138503,8.16279124,194.44,194.41,2.5769]
[1735769140204,8.16279124,194.44,194.4,2.92]
[1735769140502,8.16279124,194.44,194.42,2.5769]
[1735769141205,8.16279124,194.44,194.4,2.92]
[1735769141407,8.16279124,194.46,194.44,2.5766]
[1735769142001,8.16279124,194.46,194.43,2.5767]
[1735769142501,8.16279124,194.44,194.41,2.577]
[1735769144909,8.16279124,194.44,194.4,2.92]
[1735769145109,8.16279124,194.44,194.42,2.5769]
[1735769146709,8.16279124,194.44,194.41,2.577]
[1735769146911,8.16279124,194.42,194.36,8.16279124]
[1735769147106,8.16279124,194.4,194.33,10.28226046]
[1735769147313,8.16279124,194.38,194.35,2.5778]
[1735769149214,8.16279124,194.38,194.34,2.5779]
[1735769154014,8.16279124,194.36,194.32,2.5781]
[1735769154315,8.16279124,194.36,194.31,2.92]
[1735769154514,8.16279124,194.36,194.3,11.08279124]
[1735769155418,10.74049124,194.36,194.31,2.5783]
[1735769157020,8.16279124,194.32,194.26,2.59086752]
[1735769157218,8.16279124,194.32,194.27,8.83620358]
[1735769157519,8.16279124,194.32,194.26,2.59086752]
[1735769157721,8.16279124,194.32,194.27,1.8560432]
[1735769157919,8.16279124,194.32,194.26,5.51086752]
[1735769158121,8.16279124,194.32,194.27,1.85594768]
[1735769158422,8.16279124,194.32,194.28,2.5786]
[1735769159320,8.16279124,194.3,194.28,2.5786]
[1735769160023,8.16279124,194.3,194.24,33.70255544]
[1735769160237,8.16279124,194.3,194.26,2.579]
[1735769160923,10.74129124,194.3,194.25,2.5791]
[1735769164026,8.16279124,194.28,194.23,2.92]
[1735769164217,8.16279124,194.28,194.24,2.5793]
[1735769164418,8.16279124,194.26,194.24,2.5793]
[1735769165021,8.16279124,194.26,194.21,8.16279124]
[1735769165022,8.16279124,194.26,194.21,2.92]
[1735769165422,8.16279124,194.26,194.16,1.564]
[1735769165423,8.16279124,194.24,194.17,8.16279124]
[1735769165623,8.16279124,194.24,194.18,2.92]
[1735769165920,8.16279124,194.24,194.16,1.564]
[1735769166229,8.16279124,194.22,194.18,2.58]
[1735769166423,1.4713,194.35,194.18,2.58]
[1735769166424,8.16279124,194.2,194.18,2.58]
[1735769166725,2.5794,194.23,194.17,2.92]
[1735769166927,8.16279124,194.19,194.17,2.92]
[1735769167322,8.16279124,194.19,194.17,5.5002]
[1735769167528,8.16279124,194.19,194.14,3.147]
[1735769167723,8.16279124,194.19,194.14,4.4859]
[1735769167930,8.16279124,194.19,194.14,2.5806]
[1735769168229,4.5177,194.26,194.14,2.5806]
[1735769168230,8.16279124,194.17,194.14,2.5806]
[1735769169227,8.16279124,194.15,194.12,2.5807]
[1735769169620,8.16279124,194.15,194.1,2.92]
[1735769169826,8.16279124,194.15,194.12,2.5808]
[1735769170528,8.16279124,194.13,194.1,2.92]
[1735769170833,4.5177,194.26,194.06,2.92]
[1735769170834,8.16279124,194.11,194.06,2.92]
[1735769171331,8.16279124,194.07,194.01,7.15676046]
[1735769171530,1.5961,194.16,194.03,8.16279124]
[1735769171531,2.92,194.15,194.03,8.16279124]
[1735769171727,8.16279124,194.11,194.05,8.16279124]
[1735769172124,2.92,194.15,194.05,8.16279124]
[1735769172327,8.16279124,194.11,194.05,8.16279124]
[1735769172739,2.92,194.15,194.05,8.16279124]
[1735769173034,8.16279124,194.11,194.05,8.16279124]
[1735769173434,8.16279124,194.09,194.03,11.08279124]
[1735769174523,8.16279124,194.09,194.03,2.92]
[1735769174730,8.16279124,194.07,194.05,2.5817]
[1735769175827,8.16279124,194.07,194.02,2.92]
[1735769176129,8.16279124,194.05,194.02,2.92]
[1735769176630,8.16279124,194.05,194.01,2.5822]
[1735769178933,8.16279124,194.05,194.0,2.5825]
[1735769179228,8.16279124,194.03,193.97,8.16279124]
[1735769179434,8.16279124,194.03,193.97,11.08279124]
[1735769179637,8.16279124,194.03,193.99,2.5826]
[1735769180727,8.16279124,194.03,193.96,4.4257]
[1735769180935,8.16279124,194.03,194.0,2.5825]
[1735769181637,2.5818,194.05,194.0,2.5825]
[1735769181831,8.16279124,194.03,194.0,2.5825]
[1735769182935,8.16279124,194.03,194.01,2.5823]
[1735769184237,8.16279124,194.03,193.99,2.5825]
[1735769184436,4.4013,194.08,193.96,12.58849124]
[1735769184640,8.16279124,194.03,193.96,12.58849124]
[1735769184833,8.16279124,194.03,194.0,2.5824]
[1735769185138,8.16279124,194.01,193.95,2.92]
[1735769185332,8.16279124,193.99,193.95,2.92]
[1735769185636,8.16279124,194.01,193.94,8.16279124]
[1735769185837,8.16279124,194.01,193.95,2.92]
[1735769186427,8.16279124,194.01,193.94,8.16279124]
[1735769186428,8.16279124,194.01,193.96,2.92]
[1735769186829,8.16279124,194.01,193.99,2.5826]
[1735769188638,2.5825,194.0,193.95,2.583]
[1735769188836,8.16279124,193.97,193.93,2.92]
[1735769189541,8.16279124,193.97,193.96,2.583]
[1735769190542,3.0318,194.07,193.93,2.92]
[1735769190741,3.0318,194.07,193.94,8.16279124]
[1735769190934,8.16279124,194.02,193.94,8.16279124]
[1735769191942,8.16279124,194.02,194.0,2.5824]
[1735769192244,8.16279124,194.02,193.98,2.92]
[1735769193040,8.16279124,193.99,193.96,2.92]
[1735769193542,8.16279124,193.99,193.97,2.5829]
[1735769194146,8.16279124,193.99,193.96,2.92]
[1735769194537,8.16279124,193.99,193.95,2.583]
[1735769194745,8.16279124,193.97,193.93,2.92]
[1735769195745,8.16279124,193.99,193.93,11.08279124]
[1735769196050,8.16279124,194.01,193.93,11.08279124]
[1735769196346,8.16279124,194.01,193.99,2.5825]
[1735769197437,8.16279124,194.01,193.93,11.08279124]
[1735769198646,8.16279124,194.01,193.95,8.16279124]
[1735769198844,8.16279124,194.03,193.95,8.16279124]
[1735769199149,8.16279124,194.03,193.96,1.4796]
[1735769199648,8.16279124,194.03,193.97,8.16279124]
[1735769199839,8.16279124,194.03,194.02,2.5822]
[1735769200245,3.1373,194.16,194.0,2.92]
[1735769200446,8.16279124,194.09,194.01,8.16279124]
[1735769200744,8.16279124,194.05,194.0,2.92]
[1735769201645,8.16279124,194.05,194.02,2.5822]
[1735769203048,8.16279124,194.04,194.02,2.5822]
[1735769203742,8.16279124,194.04,194.0,2.5823]
[1735769203948,8.16279124,194.02,193.99,28.55347075]
[1735769204557,8.16279124,194.02,193.99,85.86834414]
[1735769205243,8.16279124,194.02,193.99,88.45084414]
[1735769205546,8.16279124,194.03,193.97,85.86834414]
[1735769205945,8.16279124,194.03,194.0,2.5824]
[1735769208246,8.16279124,194.01,194.0,2.5824]
[1735769208751,8.16279124,194.01,193.98,85.86834414]
[1735769209752,8.16279124,194.01,193.96,90.34014414]
[1735769209952,8.16279124,194.01,193.98,2.5826]
[1735769210149,8.16279124,194.01,193.96,90.34014414]
[1735769210351,8.16279124,194.02,193.96,90.34014414]
[1735769210948,8.16279124,194.02,193.99,2.5825]
[1735769213252,8.16279124,194.02,194.01,2.5823]
[1735769218665,8.16279124,194.04,194.02,2.5821]
[1735769219861,8.16279124,194.04,193.98,8.16279124]
[1735769220166,8.16279124,194.06,193.99,4.07697729]
[1735769220360,8.16279124,194.04,193.97,2.92]
[1735769220561,8.16279124,194.02,193.99,2.5826]
[1735769220761,8.16279124,194.0,193.99,2.5826]
[1735769223958,2.5818,194.05,194.01,2.5823]
[1735769224268,8.16279124,194.03,194.01,2.5823]
[1735769229968,8.16279124,194.03,193.97,2.92]
[1735769230269,8.16279124,194.03,194.0,2.5824]
[1735769231361,8.16279124,194.03,194.02,2.5822]
[1735769231663,8.16279124,194.05,193.98,8.16279124]
[1735769232669,8.16279124,194.05,194.02,2.5821]
[1735769233557,8.16279124,194.05,194.03,2.5821]
[1735769235270,1.6033,194.09,193.98,8.16279124]
[1735769235467,8.16279124,194.04,193.99,4.08213147]
[1735769235668,8.16279124,194.04,193.98,8.16279124]
[1735769236168,8.16279124,194.04,194.0,2.5824]
[1735769236367,8.16279124,194.04,193.98,8.16279124]
[1735769236664,8.16279124,194.04,193.99,4.08211768]
[1735769236865,8.16279124,194.04,194.02,2.5821]
[1735769237971,8.16279124,194.04,193.98,8.16279124]
[1735769238172,8.16279124,194.04,194.02,2.5821]
[1735769239868,8.16279124,194.04,194.0,2.5823]
[1735769240069,8.16279124,194.01,193.98,2.94]
[1735769240371,8.16279124,193.99,193.96,2.94]
[1735769240573,8.16279124,193.99,193.97,4.08371646]
[1735769240866,8.16279124,193.99,193.96,2.94]
[1735769241171,8.16279124,193.99,193.97,6.66643448]
[1735769241371,8.16279124,193.99,193.97,2.5827]
[1735769241872,2.5821,194.03,193.98,2.5827]
[1735769242074,8.16279124,194.0,193.98,2.5827]
[1735769246576,2.5821,194.03,193.98,2.5827]
[1735769247079,8.16279124,193.99,193.98,2.5827]
[1735769247776,8.16279124,193.99,193.96,2.5829]
[1735769251581,8.16279124,193.99,193.97,2.5828]
[1735769251783,8.16279124,194.01,193.95,2.94]
[1735769252184,8.16279124,194.01,193.96,4.08205578]
[1735769252382,8.16279124,194.01,193.95,2.94]
[1735769252686,8.16279124,194.01,193.96,4.08194126]
[1735769252883,8.16279124,194.01,193.95,2.94]
[1735769253085,8.16279124,194.01,193.98,2.5826]
[1735769254085,8.16279124,194.01,193.96,2.5829]
[1735769254382,8.16279124,194.01,193.95,2.94]
[1735769254686,8.16279124,194.01,193.96,4.08201855]
[1735769254887,8.16279124,194.01,193.98,2.5826]
[1735769257280,8.16279124,194.05,193.98,8.16279124]
[1735769257881,8.16279124,194.05,194.02,2.5821]
[1735769259281,8.16279124,194.05,194.03,2.582]
[1735769260182,11.10279124,194.05,193.94,7.15676046]
[1735769260382,8.16279124,193.95,193.94,7.15676046]
[1735769260578,8.16279124,193.95,193.9,7.15676046]
[1735769261581,8.16279124,193.95,193.92,2.5834]
[1735769266095,8.16279124,193.93,193.91,2.5836]
[1735769268200,8.16279124,193.93,193.89,2.92]
[1735769269795,8.16279124,193.95,193.89,2.92]
[1735769269999,8.16279124,193.95,193.93,2.5833]
[1735769270193,2.5827,193.98,193.93,2.5833]
[1735769270394,8.16279124,193.97,193.89,11.08279124]
[1735769270698,8.16279124,193.97,193.89,2.92]
[1735769270898,8.16279124,193.97,193.9,8.16279124]
[1735769271501,8.16279124,193.97,193.94,2.5832]
[1735769273098,8.16279124,193.97,193.9,8.16279124]
[1735769273302,8.16279124,193.97,193.93,2.5833]
[1735769278707,8.16279124,193.95,193.89,2.92]
[1735769280397,1.546,194.02,193.87,2.5841]
[1735769280603,8.16279124,193.88,193.83,7.15676046]
[1735769280998,8.16279124,193.88,193.85,2.5844]
[1735769281310,8.16279124,193.86,193.83,7.15676046]
[1735769281807,8.16279124,193.86,193.81,2.92]
[1735769282606,8.16279124,193.82,193.78,28.55347075]
[1735769282802,8.16279124,193.82,193.77,7.15676046]
[1735769283511,8.16279124,193.82,193.79,2.5852]
[1735769284016,8.16279124,193.82,193.68,100.02519352]
[1735769284215,8.16279124,193.82,193.73,1.5241]
[1735769284514,8.16279124,193.82,193.75,8.16279124]
[1735769284916,2.92,193.88,193.77,8.16279124]
[1735769285215,8.16279124,193.84,193.83,2.5847]
[1735769285411,8.16279124,193.84,193.77,8.16279124]
[1735769285607,2.5839,193.89,193.77,8.16279124]
[1735769285608,4.5099,193.94,193.77,8.16279124]
[1735769285814,8.16279124,193.86,193.85,2.5844]
[1735769286015,8.16279124,193.86,193.79,8.16279124]
[1735769286906,4.5099,193.94,193.79,8.16279124]
[1735769287107,8.16279124,193.85,193.83,2.5846]
[1735769296226,2.5844,193.85,193.79,2.5852]
[1735769296528,8.16279124,193.81,193.79,2.5852]
[1735769296923,8.16279124,193.81,193.78,2.5854]
[1735769297628,8.16279124,193.81,193.76,2.5855]
[1735769298726,8.16279124,193.79,193.75,1.5545]
[1735769298923,8.16279124,193.79,193.75,4.5345]
[1735769299425,8.16279124,193.79,193.75,7.1201]
[1735769299625,8.16279124,193.79,193.75,4.5345]
[1735769299816,8.16279124,193.81,193.75,4.5345]
[1735769300023,8.16279124,193.81,193.79,2.5852]
[1735769300520,8.16279124,193.83,193.77,8.16279124]
[1735769300727,8.16279124,193.85,193.79,8.16279124]